Cogmind - Beta 13 @@@ ROGUE MODE // 2024.03.13 @ 14:39:36 Player: Oldman Pu Result: Destroyed by D-53 Grenadier with Mini Grenade Launcher Performance ------------- Evolutions (0) 0 Regions Visited (2) 400 Robots Destroyed (17) 85 Value Destroyed (310) 310 Prototype IDs (2) 40 Alien Tech Used (0) 0 Bonus (0) 0 TOTAL SCORE: 835 Bonus ------- None Cogmind --------- Core Integrity 0/250 Matter 269/300 Energy 89/100 System Corruption 0% Temperature Cool (0) Movement Rolling (105) Ox1 Location -10/Mines Parts ------- > --- POWER (1) -------- (None) > --- PROPULSION (2) --- Armored Wheel Armored Wheel > --- UTILITY (2) ------ Large Storage Unit Core Shielding > --- WEAPON (2) ------- Autogun Autogun > --- INVENTORY (15) --- Light Ion Engine Armored Wheel Armored Wheel Heat Sink Core Shielding Core Shielding Core Shielding Core Shielding Beam Cannon Beam Cannon Beam Cannon Autogun Autogun Peak State ------------ > --- POWER ------------ Ion Engine > --- PROPULSION ------- Armored Wheel Armored Wheel > --- UTILITY ---------- Large Storage Unit Targeting Computer > --- WEAPON ----------- Autogun Autogun > --- INVENTORY -------- Light Ion Engine Armored Wheel Armored Wheel Heat Sink Large Storage Unit Core Shielding Core Shielding Core Shielding Core Shielding Core Shielding Beam Cannon Beam Cannon Beam Cannon Light Assault Rifle Light Assault Rifle [Rating: 12] Favorites ----------- Power Ion Engine Engine Ion Engine Propulsion Armored Wheel Wheel Armored Wheel Utility Targeting Computer Storage Large Storage Unit Processor Targeting Computer Protection Core Shielding Weapon Autogun Energy Gun Small Laser Energy Cannon Beam Cannon Ballistic Gun Autogun Build | -11 -10 -10 ------- Run | Yrd Mat Min Slots Evolved . | . . . Power . | . . . Propulsion . | . . . Utility . | . . . Weapon . | . . . Parts Attached 23 | 6 15 2 Power 3 | 1 2 . Engine 3 | 1 2 . Core . | . . . Reactor . | . . . Propulsion 4 | 2 2 . Treads . | . . . Leg . | . . . Wheel 4 | 2 2 . Hover . | . . . Flight . | . . . Utility 4 | 1 2 1 Device . | . . . Storage 2 | 1 1 . Processor 1 | . 1 . Hackware . | . . . Protection 1 | . . 1 Artifact . | . . . Weapon 12 | 2 9 1 Energy Gun 4 | 2 2 . Energy Cannon 2 | . 2 . Ballistic Gun 6 | . 5 1 Ballistic Cannon . | . . . Launcher . | . . . Special Weapon . | . . . Impact Weapon . | . . . Slashing Weapon . | . . . Piercing Weapon . | . . . Special Melee Weapon . | . . . Unidentified Prototypes . | . . . Parts Lost 3 | . 2 1 Power 2 | . 1 1 Propulsion 1 | . 1 . Utility . | . . . Weapon . | . . . Highest Loss Streak 1 | . 1 1 To Critical Strikes . | . . . Average Slot Usage (%) 97 | . 97 98 Engine 13 | . 13 12 Wheel 27 | . 27 28 Storage 14 | . 14 14 Processor 12 | . 12 14 Energy Gun 6 | . 7 . Energy Cannon 1 | . 1 . Ballistic Gun 19 | . 18 28 Naked Turns . | . . . Heaviest Build 31 | 12 31 31 Greatest Support 24 | 20 24 24 Greatest Overweight (x) 1 | . 1 1 Average Overweight (x) . | . . 1 Largest Inventory Capacity 15 | 8 15 15 Average Capacity 12 | 7 12 15 Most Carried 15 | 1 15 14 Average Carried 10 | . 10 13 Final Capacity 15 | 8 15 15 Final Carried 14 | . 14 13 Class Distribution -------------------- 100% | Mutant Dominant Class ---------------- Mutant | -10/Materials Mutant | -10/Mines Resources | -11 -10 -10 ----------- Run | Yrd Mat Min Matter Collected 622 | 225 397 . Remotely . | . . . Salvage Created 583 | . 583 . Parts 40 | . 40 . Haulers Intercepted 1 | . 1 . Recyclers Shooed . | . . . Parts Field Recycled . | . . . Retrieved Matter . | . . . Parts Self-Destructed . | . . . Prevented . | . . . Kills | -11 -10 -10 ------- Run | Yrd Mat Min Combat Hostiles Destroyed 10 | . 10 . Guns 6 | . 6 . Cannons 4 | . 4 . Classes Destroyed 6 | . 6 . Builder 1 | . 1 . Hauler 1 | . 1 . Recycler 2 | . 2 . Watcher 3 | . 3 . Swarmer 5 | . 5 . Grunt 5 | . 5 . Best Kill Streak 4 | . 4 . Combat Bots Only 3 | . 3 . Max Kills in Single Turn 1 | . 1 . Gunslinging . | . . . Exploded . | . . . Melee . | . . . Uniques/NPCs Destroyed . | . . . Combat | -11 -10 -10 -------- Run | Yrd Mat Min Hostile Shots Fired 93 | . 83 10 Missed 14 | . 14 . Damage Taken 999 | . 588 411 Core 262 | . 167 95 Absorbed by Shields . | . . . Redirected to Shielding 11 | . . 11 Core Remaining (%) 100 | 100 . . Volleys Fired 47 | . 44 3 Largest 2 | . 2 2 Hottest 120 | . 120 46 Shots Fired 92 | . 88 4 Gun 67 | . 63 4 Cannon 25 | . 25 . Launcher . | . . . Special . | . . . Kinetic 48 | . 44 4 Thermal 44 | . 44 . Explosive . | . . . Electromagnetic . | . . . Robot Hit Streak 16 | . 16 5 Robot Miss Streak 3 | . 3 . Penetration Max . | . . . Secondary Targets 1 | . 1 . Max Gunslinging Chain 1 | . 1 . Shots Hit Robots 59 | . 55 4 Core Hits 28 | . 28 . Critical Kills 1 | . 1 . Critical Parts Destroyed . | . . . Critical Strikes 1 | . 1 . Destroy 1 | . 1 . Melee Attacks . | . . . Impact . | . . . Slashing . | . . . Piercing . | . . . Sneak Attacks . | . . . Combat Hostiles . | . . . Follow-up Attacks . | . . . Damage Inflicted 736 | . 681 55 Guns 494 | . 439 55 Cannons 229 | . 229 . Explosions . | . . . Melee . | . . . Ramming 13 | . 13 . Kinetic 341 | . 286 55 Thermal 382 | . 382 . Explosive . | . . . Electromagnetic . | . . . Impact . | . . . Slashing . | . . . Piercing . | . . . Highest Corruption . | . . . Average Corruption . | . . . Corruption Purged . | . . . Corruption Blocked . | . . . Overload Shots . | . . . Overflow Damage 14 | . 14 . Projectiles 14 | . 14 . Explosions . | . . . Melee . | . . . Knockbacks . | . . . Impact . | . . . Kinetic . | . . . Secondary . | . . . Self-Inflicted Damage 6 | . 6 . Shots . | . . . Rammed 2 | . 2 . Targets Rammed 2 | . 2 . Kicked . | . . . Crushed . | . . . Highest Temperature 473 | . 473 3 Average Temperature 177 | . 180 3 Received Heat Transfer 111 | . 111 . Effects 6 | . 6 . Shutdowns 1 | . 1 . Energy Bleed 1 | . 1 . Interference 1 | . 1 . Matter Decay 3 | . 3 . Siege Activations . | . . . Robots Corrupted . | . . . Combat Hostiles . | . . . Parts Fried . | . . . Impact Corruptions . | . . . Robots Melted . | . . . Combat Hostiles . | . . . Parts Melted 1 | . 1 . Heat Transferred 831 | . 831 . Parts Sabotaged . | . . . Parts Stolen . | . . . Parts Stripped . | . . . Power Chain Reactions . | . . . Alert | -11 -10 -10 ------- Run | Yrd Mat Min Peak Influence 206 | . 206 8 Initial 8 | . . 8 Average 74 | . 84 7 Maximum Alert Level 1 | . 1 . Low Security (%) 96 | 100 95 100 Level 1 3 | . 4 . Level 2 . | . . . Level 3 . | . . . Level 4 . | . . . Level 5 . | . . . High Security . | . . . Max Security . | . . . Squads Dispatched 2 | . 2 . Investigation . | . . . Extermination . | . . . Reinforcement 2 | . 2 . Assault . | . . . Garrison . | . . . Intercept . | . . . Searches Triggered . | . . . Construction Impeded . | . . . Haulers Reinforced . | . . . Active Scanning Responses . | . . . Cargo Convoy Interrupts . | . . . Stealth | -11 -10 -10 --------- Run | Yrd Mat Min Distress Signals . | . . . Communications Jammed . | . . . Distress Signals . | . . . Times Spotted 22 | . 17 5 Peak Tracking Total 4 | . 4 2 Tactical Retreats . | . . . Traps | -11 -10 -10 ------- Run | Yrd Mat Min Traps Triggered . | . . . Indirectly . | . . . Trap Hack Attempts . | . . . Triggered . | . . . Disarmed . | . . . Reprogrammed . | . . . Reused . | . . . Traps Extracted . | . . . Installed . | . . . Triggered . | . . . Machines | -11 -10 -10 ---------- Run | Yrd Mat Min Machines Disabled 1 | . 1 . Max in Single Turn 1 | . 1 . Machines Repaired . | . . . Machines Dismantled . | . . . Machines Sabotaged . | . . . Overloaded Fab Kills . | . . . Hacking | -11 -10 -10 --------- Run | Yrd Mat Min Machines Accessed 6 | . 6 . Terminals 4 | . 4 . Fabricators . | . . . Repair Stations . | . . . Recycling Units 2 | . 2 . Scanalyzers . | . . . Garrison Access . | . . . Total Hacks 8 | . 8 . Successful 6 | . 6 . Failed 2 | . 2 . Catastrophic 1 | . 1 . Database Lockouts . | . . . Manual 3 | . 3 . Terminals 6 | . 6 . Fabricators . | . . . Repair Stations . | . . . Recycling Units 2 | . 2 . Scanalyzers . | . . . Garrison Access . | . . . Terminal Hacks 4 | . 4 . Record 1 | . 1 . Prototype ID Bank 1 | . 1 . Emergency Access Points 1 | . 1 . Locate Traps 1 | . 1 . Fabricator Hacks . | . . . Repair Station Hacks . | . . . Recycling Unit Hacks 2 | . 2 . Report Inventory 2 | . 2 . Scanalyzer . | . . . Garrison Access Hacks . | . . . Unauthorized Hacks . | . . . Terminals . | . . . Fabricators . | . . . Repair Stations . | . . . Recycling Units . | . . . Scanalyzers . | . . . Garrison Access . | . . . Data Cores Recovered . | . . . Used . | . . . Hacking Detections 3 | . 3 . Full Trace Events . | . . . Feedback Events . | . . . Feedback Blocked . | . . . Robot Schematics Acquired . | . . . Robots Built . | . . . Authchips . | . . . Time . | . . . Total Robot Build Rating . | . . . Part Schematics Acquired . | . . . Parts Built . | . . . Authchips . | . . . Time . | . . . Total Part Build Rating . | . . . Parts Repaired . | . . . Time . | . . . Parts Recycled . | . . . Recycled Matter . | . . . Retrieved Matter . | . . . Retrieved Components . | . . . Parts Scanalyzed . | . . . Part Schematics Acquired . | . . . Parts Damaged . | . . . Bothacking | -11 -10 -10 ------------ Run | Yrd Mat Min Used RIF Installer . | . . . Robots Hacked . | . . . Non-combat . | . . . Combat . | . . . Robot Hacks Applied . | . . . Relay Couplers Released . | . . . Fabnet Peak Effective % . | . . . Robots Rewired . | . . . Allies Hacked . | . . . Hacks Repelled . | . . . Allies | -11 -10 -10 -------- Run | Yrd Mat Min Total Allies . | . . . Largest Group . | . . . Highest-Rated Group . | . . . Highest-Rated Ally . | . . . Total Orders . | . . . Ally Attacks . | . . . Total Damage . | . . . Kills . | . . . Allies Corrupted . | . . . Allies Melted . | . . . Intel | -11 -10 -10 ------- Run | Yrd Mat Min Robot Analysis Total . | . . . Derelict Logs Recovered . | . . . Drone Launches . | . . . Drone Recoveries . | . . . Exploration | -11 -10 -10 ------------- Run | Yrd Mat Min Turns Passed 1055 | 37 925 93 Spaces Moved 732 | 36 617 79 Core 6 | 6 . . Treads . | . . . Legs . | . . . Wheels 726 | 30 617 79 Hover . | . . . Flight . | . . . Fastest Speed 50 | 50 80 105 Average Speed 96 | 75 96 105 Slowest Speed 105 | 80 105 105 Overloaded Moves . | . . . Propulsion Burnouts . | . . . Robots Hopped . | . . . Cave-ins Triggered . | . . . Exploration Rate (%) 39 | 3 89 26 Regions Visited 2 Branch Regions 1 Pre-discovered Areas . | . . . Known Exits Taken . | . . . Unknown Exits Taken 2 | 1 1 . Scrap Searched . | . . . Spaces Dug . | . . . Terrain Destroyed . | . . . Melee . | . . . Projectile . | . . . AOE . | . . . Terrain Rammed . | . . . Walls Destroyed . | . . . Machines Disabled . | . . . Actions | -11 -10 -10 --------- Run | Yrd Mat Min Total 993 | 43 866 84 Wait 149 | . 149 . Move 730 | 35 616 79 Hop . | . . . Pick Up 27 | 2 25 . Fast Attach 6 | 4 2 . Attach 3 | 2 1 . Detach . | . . . Swap 14 | . 12 2 Drop 15 | . 15 . Fire 47 | . 44 3 Melee . | . . . Ram 2 | . 2 . Kick . | . . . Crush . | . . . Escape Stasis . | . . . Rewire . | . . . Trap . | . . . Miscellaneous . | . . . Route ------- -11/Scrapyard -10/Materials (discovered 4 exits: [*Mat x2] / [*Min x2]) -10/Mines (discovered 1 exit: [*Mat]) History --------- Turn | Location | Event 10 | -11/Scrapyard | Discovered new exit (range 15) 38 | -11/Scrapyard | Entered Materials 259 | -10/Materials | Discovered new exit (range 13) 305 | -10/Materials | Build established: Mutant 391 | -10/Materials | Discovered new exit (range 13) 505 | -10/Materials | Core integrity fell below 50% 710 | -10/Materials | Discovered new exit (range 8) 846 | -10/Materials | Discovered new exit (range 14) 963 | -10/Materials | Entered Mines 1000 | -10/Mines | Discovered new exit (range 6) 1032 | -10/Mines | Assembled infested the area 1051 | -10/Mines | Core integrity fell below 20% 1056 | -10/Mines | Destroyed by D-53 Grenadier with Mini Grenade Launcher Last Messages --------------- 01043_ D-53 Grenadier unfolds itself. 01045_ U-05 Engineer lays Concrete. 01048_ Ion Engine destroyed. 01049_ The unstable cave ceiling collapses. 01049_ U-05 Engineer lays Concrete. 01050_ K-01 Serf collects debris. 01050_ U-05 Engineer lays Concrete. 01051_ Discarded Targeting Computer. 01052_ R-06 Scavenger destroyed. 01052_ U-05 Engineer lays Concrete. 01053_ The unstable cave ceiling collapses. 01053_ U-05 Engineer lays Concrete. 01054_ as-62238 destroyed. 01054_ as-59574 destroyed. 01054_ as-22883 destroyed. 01054_ U-05 Engineer lays Concrete. 01054_ K-01 Serf collects debris. 01055_ U-05 Engineer lays Concrete. 01056_ The unstable cave ceiling collapses. 01056_ U-05 Engineer lays Concrete. Map ----- +----------------------------------------------------+ | ?????????????????????????????????????????????????? | | ?????????????????????????????##############??????? | | ?????????????????????????????# #??????? | | ????????????????????# ?????# #??????? | | ??????????????????## ?????# """ """ #??????? | | ?????????????????? ?????# """ """ #??????? | | ??????????????????? ?????# """ """ #??????? | | ??????????????????? ?????# #??????? | | ???????????????????? ?????# """ """ #??????? | | ???????????????????? ?????# """ """ #??????? | | ????????????????????# #????# """ """ #??????? | | ????????????????????# #????# #??????? | | ??????????????####?## #???###### #######??????? | | ?????????? ## ## #???# ##???????????? | | ?????????? #???# #### ##??????????? | | ????????? ##### ### #####??????? | | ?????????? r ## #??????? | | ?????????? ## ####### #### #??????? | | ????????????????????## ##????## ##???????????? | | ?????????????????????# k #?????#####????????????? | | ?????????????????????# ##?????????????????????? | | ?????????????????????## ##????????????????????? | | ??????????????????????# ######???????????????? | | ??????????????????????# u #???????????????? | | ??????????????????????# #???????????????? | | ?????????????????????## @ # #???????????????? | | ?????????????????????# #???????????????? | | ?????????????????????# #???????????????? | | ?????????????????????# d% #???????????????? | | ?????????????????????# #???????????????? | | ?????????????????????## r d #???????????????? | | ??????????????????????## u##???????????????? | | ?????????????????????? ## ##???????????????? | | ?????????????????????# ?### #####???????????? | | ???????????????????? ???# ##??????????? | | ??????????????????? ???? % #??????????? | | ??????????????????## ???? #???? | | ???????????????????# ????? % # ???? | | ???????????????????# ? ?????% ????? | | ??????????????????? ???? # ###????? | | ??????????????????? ? ????### ######## ##??????? | | ?????????????????????????????##???????####???????? | | ?????????????????????????????????????????????????? | | ?????????????????????????????????????????????????? | | ?????????????????????????????????????????????????? | | ?????????????????????????????????????????????????? | | ?????????????????????????????????????????????????? | | ?????????????????????????????????????????????????? | | ?????????????????????????????????????????????????? | | ?????????????????????????????????????????????????? | +----------------------------------------------------+ Best States ------------- Heat Dissipation 25 Energy Generation 10 Energy Capacity 250 Matter Stores 300 Matter Capacity 300 Sight Range 16 Terrain Scan Density 10 Evasion (%) 44 Targeting Accuracy 5 Item Schematics ----------------- None Robot Schematics ------------------ None Fabricated ------------ Nothing Alien Tech Used ----------------- None Achievements -------------- None Challenges ------------ None Game ------ Seed FlakSlugBrace Manual? 0 Play Time 00:14:46 Cumulative 154.3 hours Start 2024.03.13 @ 13:51:44 End 2024.03.13 @ 14:39:36 Sessions 1 Manual Loads 0 Difficulty Rogue Special Mode None Game No. 104 Rogue 92 Adventurer 12 Explorer 0 Win Type - Total 1 Types 1/0/0/0/0/0/0/0/0 Lore% 23 Gallery% 38 Achievement% 30 Wizard Run 0 Options --------- Layout 1 ASCII 0 Keyboard 0 Movement Mouse Keybinds 0 Fullscreen 1 Font 32/SmallcapsGlow Map View 77x35 Zoom Use 0% Tactical HUD 1 Map Filters NONE Filters NONE Steam 1 RUN: c1b8b564-2b6a-46f3-bb72-f4f0839d6527